Cogmind - Beta 15 @@@ ROGUE MODE // 2025.09.19 @ 23:49:49 Player: Lillith Result: Destroyed by as-98642 with Assembled Maul Performance ------------- Evolutions (0) 0 Regions Visited (4) 800 Robots Destroyed (27) 135 Value Destroyed (520) 520 Prototype IDs (23) 460 Alien Tech Used (0) 0 Bonus (300) 300 TOTAL SCORE: 2215 Bonus ------- Aligned with FarCom 300 Cogmind --------- Core Integrity 0/250 Matter 227/300 Energy 100/100 System Corruption 7% Temperature Cool (5) Movement Rolling (130) Ox2 Location -9/Mines Parts ------- > --- POWER (1) -------- (None) > --- PROPULSION (2) --- Light Treads Compact Wheel > --- UTILITY (2) ------ High-capacity Storage Unit > --- WEAPON (2) ------- Assault Rifle > --- INVENTORY (20) --- Ion Engine Light Treads Aluminum Leg Small Storage Unit Structural Scanner Signal Interpreter Hacking Suite Trap Reconfigurator Peak State ------------ > --- POWER ------------ Backup Power I > --- PROPULSION ------- Light Treads Compact Wheel > --- UTILITY ---------- High-capacity Storage Unit Trap Reconfigurator > --- WEAPON ----------- Assault Rifle Light Assault Rifle > --- INVENTORY -------- Ion Engine Light Treads Aluminum Leg Small Storage Unit Structural Scanner Signal Interpreter Seismic Detector Light Armor Plating Hacking Suite [Rating: 16] Favorites ----------- Power Backup Power I Engine Backup Power I Propulsion Light Treads Treads Light Treads Wheel Wheel Utility Small Storage Unit Device Structural Scanner Storage Small Storage Unit Protection Light Armor Plating Weapon Light Assault Rifle Ballistic Gun Light Assault Rifle Build | -11 -10 -10 -10 -9 ------- Run | Yrd Mat Min Exi Min Slots Evolved . | . . . . . Power . | . . . . . Propulsion . | . . . . . Utility . | . . . . . Weapon . | . . . . . Parts Attached 15 | 8 2 2 1 2 Power 1 | 1 . . . . Engine 1 | 1 . . . . Core . | . . . . . Reactor . | . . . . . Propulsion 3 | 2 . 1 . . Treads 1 | 1 . . . . Leg . | . . . . . Wheel 2 | 1 . 1 . . Hover . | . . . . . Flight . | . . . . . Utility 8 | 3 1 1 1 2 Device 5 | 2 1 . . 2 Storage 2 | 1 . . 1 . Processor . | . . . . . Hackware . | . . . . . Protection 1 | . . 1 . . Artifact . | . . . . . Weapon 3 | 2 1 . . . Energy Gun . | . . . . . Energy Cannon . | . . . . . Ballistic Gun 3 | 2 1 . . . Ballistic Cannon . | . . . . . Launcher . | . . . . . Special Weapon . | . . . . . Impact Weapon . | . . . . . Slashing Weapon . | . . . . . Piercing Weapon . | . . . . . Special Melee Weapon . | . . . . . Unidentified Prototypes . | . . . . . Parts Lost 8 | . 2 2 . 4 Power 2 | . 1 . . 1 Propulsion 1 | . . 1 . . Utility 3 | . 1 . . 2 Weapon 2 | . . 1 . 1 Highest Loss Streak 4 | . 2 2 . 4 To Critical Strikes . | . . . . . Average Backups 7 | 5 7 7 6 8 Power . | . 1 1 1 1 Propulsion 2 | 3 3 2 2 2 Utility 3 | . 2 3 3 5 Weapon . | . 1 . . . Tool/Special . | . . . . . Unused Backups 9 | . 4 . . 5 Power 1 | . . . . 1 Propulsion 3 | . 1 . . 2 Utility 3 | . 1 . . 2 Weapon 2 | . 2 . . . Tool/Special . | . . . . . Average Slot Usage (%) 96 | . 95 98 100 96 Engine 12 | . 10 14 14 13 Treads 13 | . 13 14 14 14 Wheel 13 | . 13 12 14 14 Device 7 | . 13 4 . 2 Storage 14 | . 14 14 14 14 Protection 5 | . . 9 14 10 Ballistic Gun 27 | . 28 27 28 26 Peak Build Rating 16 | 7 8 8 8 16 Average Rating 7 | 5 7 7 7 9 On Entrance 6 | . 7 8 7 8 Naked Turns . | . . . . . Heaviest Build 47 | 12 12 12 47 47 Greatest Support 20 | 20 10 16 16 16 Greatest Overweight (x) 3 | 1 1 3 2 2 Average Overweight (x) . | . . . . 2 Largest Inventory Capacity 20 | 8 8 8 20 20 Average Capacity 10 | 7 8 8 9 20 Most Carried 9 | 7 8 8 8 9 Average Carried 7 | 5 7 7 6 8 Final Capacity 20 | 8 8 8 20 20 Final Carried 8 | 7 8 6 8 8 Class Distribution -------------------- 100% | Mutant Dominant Class ---------------- Mutant | -10/Materials Mutant | -10/Mines Mutant | -10/Exiles Mutant | -9/Mines Resources | -11 -10 -10 -10 -9 ----------- Run | Yrd Mat Min Exi Min Matter Collected 893 | 398 392 55 . 48 Remotely 214 | 22 192 . . . Salvage Created 924 | 179 580 92 . 73 Parts 61 | 16 37 4 . 4 Haulers Intercepted 2 | . 2 . . . Recyclers Shooed 2 | 2 . . . . Parts Field Recycled . | . . . . . Retrieved Matter . | . . . . . Parts Self-Destructed . | . . . . . Prevented . | . . . . . Kills | -11 -10 -10 -10 -9 ------- Run | Yrd Mat Min Exi Min Combat Hostiles Destroyed 19 | . 12 2 . 5 Guns 19 | . 12 2 . 5 Classes Destroyed 8 | 3 4 . . 1 Worker 2 | 1 . . . 1 Tunneler 7 | 6 . . . 1 Hauler 2 | . 2 . . . Recycler 1 | 1 . . . . Operator 1 | . 1 . . . Swarmer 3 | . 3 . . . Grunt 11 | . 9 2 . . Assembled 5 | . . . . 5 Best Kill Streak 5 | 2 3 2 . 5 Combat Bots Only 5 | . 3 2 . 5 Max Kills in Single Turn 1 | 1 1 1 . 1 Gunslinging . | . . . . . Exploded . | . . . . . Melee . | . . . . . Uniques/NPCs Destroyed . | . . . . . Combat | -11 -10 -10 -10 -9 -------- Run | Yrd Mat Min Exi Min Hostile Shots Fired 120 | . 65 24 . 31 Missed 34 | . 20 5 . 9 Hits 86 | . 45 19 . 22 Melee 8 | . . . . 8 Projectile 78 | . 45 19 . 14 Damage Taken 1182 | . 543 256 . 383 Core 250 | . 99 86 . 65 Absorbed by Shields . | . . . . . Regen/Repaired (Parts) 160 | . 160 . . . Core Remaining (%) 100 | 100 . . . . Volleys Fired 128 | 32 56 11 . 29 Largest 2 | 2 2 2 . 2 Hottest 40 | 40 40 40 . 40 Shots Fired 238 | 64 112 19 . 43 Gun 238 | 64 112 19 . 43 Cannon . | . . . . . Launcher . | . . . . . Special . | . . . . . Kinetic 238 | 64 112 19 . 43 Thermal . | . . . . . Explosive . | . . . . . Electromagnetic . | . . . . . Robot Hit Streak 14 | 6 14 5 . 7 Robot Miss Streak 7 | 3 3 4 . 7 Penetration Max . | . . . . . Secondary Targets 2 | . 2 . . . Max Gunslinging Chain 1 | . 1 . . . Shots Hit Robots 143 | 39 73 10 . 21 Core Hits 65 | 12 33 6 . 14 Critical Kills . | . . . . . Critical Parts Destroyed 3 | . 2 1 . . Critical Strikes 3 | . 2 1 . . Destroy 3 | . 2 1 . . Melee Attacks . | . . . . . Impact . | . . . . . Slashing . | . . . . . Piercing . | . . . . . Sneak Attacks . | . . . . . Combat Hostiles . | . . . . . Follow-up Attacks . | . . . . . Damage Inflicted 1514 | 364 772 118 . 260 Guns 1514 | 364 772 118 . 260 Cannons . | . . . . . Explosions . | . . . . . Melee . | . . . . . Ramming . | . . . . . Kinetic 1514 | 364 772 118 . 260 Thermal . | . . . . . Explosive . | . . . . . Electromagnetic . | . . . . . Impact . | . . . . . Slashing . | . . . . . Piercing . | . . . . . Highest Corruption 7 | . . . . 7 Average Corruption 5 | . . . . 5 Corruption Purged . | . . . . . Corruption Blocked . | . . . . . Overload Shots . | . . . . . Overflow Damage . | . . . . . Projectiles . | . . . . . Explosions . | . . . . . Melee . | . . . . . Knockbacks . | . . . . . Impact . | . . . . . Kinetic . | . . . . . Secondary . | . . . . . Self-Inflicted Damage . | . . . . . Shots . | . . . . . Rammed . | . . . . . Targets Rammed . | . . . . . Kicked . | . . . . . Crushed . | . . . . . Highest Temperature 40 | . 25 40 . 25 Average Temperature 10 | . 7 18 . 6 Received Heat Transfer 539 | . 258 141 . 140 Siege Activations . | . . . . . Martial Activations . | . . . . . Shielding Activations . | . . . . . Robots Disrupted . | . . . . . Combat Hostiles . | . . . . . Robots Corrupted . | . . . . . Combat Hostiles . | . . . . . Parts Fried . | . . . . . Impact Corruptions . | . . . . . Robots Melted . | . . . . . Combat Hostiles . | . . . . . Parts Melted . | . . . . . Heat Transferred . | . . . . . Parts Sabotaged . | . . . . . Parts Stolen . | . . . . . Parts Stripped . | . . . . . Power Chain Reactions . | . . . . . Alert | -11 -10 -10 -10 -9 ------- Run | Yrd Mat Min Exi Min Maximum Alert Level 1 | . 1 . . . Low Security (%) 99 | 100 98 100 . 100 Level 1 . | . 1 . . . Level 2 . | . . . . . Level 3 . | . . . . . Level 4 . | . . . . . Level 5 . | . . . . . High Security . | . . . . . Max Security . | . . . . . Peak Influence 200 | 10 200 51 . 5 Initial 51 | . . 51 . . Average 67 | 2 127 24 . . Influence Increases 575 | 40 475 50 . 10 Destroy 0b10 Robot/C 280 | . 240 40 . . Destroy 0b10 Robot/NC 65 | 40 15 . . 10 Destroy Leader 74 | . 64 10 . . Successful Hack 21 | . 21 . . . Select Force Hacks 60 | . 60 . . . Partial Spotted 15 | . 15 . . . Lose Combat Pursuer 60 | . 60 . . . Influence Decreases 575 | 40 342 183 . 10 Entered New Map 82 | . . 82 . . Time Decay 463 | 40 322 91 . 10 Lost Part 30 | . 20 10 . . Squads Dispatched 4 | . 4 . . . Investigation 3 | . 3 . . . Extermination . | . . . . . Reinforcement 1 | . 1 . . . Assault . | . . . . . Garrison . | . . . . . Intercept . | . . . . . Searches Triggered . | . . . . . Construction Impeded . | . . . . . Haulers Reinforced . | . . . . . Active Scanning Responses . | . . . . . Cargo Convoy Interrupts . | . . . . . Stealth | -11 -10 -10 -10 -9 --------- Run | Yrd Mat Min Exi Min Distress Signals 1 | . 1 . . . Communications Jammed . | . . . . . Distress Signals . | . . . . . Times Spotted 37 | . 25 2 . 10 Peak Tracking Total 6 | . 6 2 . 6 Tactical Retreats 3 | . 2 . . 1 Traps | -11 -10 -10 -10 -9 ------- Run | Yrd Mat Min Exi Min Traps Triggered 2 | . 2 . . . Indirectly . | . . . . . Trap Hack Attempts . | . . . . . Triggered . | . . . . . Disarmed . | . . . . . Reprogrammed . | . . . . . Reused . | . . . . . Traps Extracted . | . . . . . Installed . | . . . . . Triggered . | . . . . . Machines | -11 -10 -10 -10 -9 ---------- Run | Yrd Mat Min Exi Min Machines Disabled . | . . . . . Max in Single Turn . | . . . . . Machines Repaired . | . . . . . Machines Dismantled . | . . . . . Machines Sabotaged . | . . . . . Overloaded Fab Kills . | . . . . . Hacking | -11 -10 -10 -10 -9 --------- Run | Yrd Mat Min Exi Min Machines Accessed 12 | . 10 . 2 . Terminals 7 | . 7 . . . Fabricators . | . . . . . Repair Stations 1 | . 1 . . . Recycling Units 2 | . 2 . . . Scanalyzers . | . . . . . Garrison Access . | . . . . . Total Hacks 27 | . 24 . 3 . Successful 13 | . 10 . 3 . Failed 14 | . 14 . . . Catastrophic 3 | . 3 . . . Database Lockouts . | . . . . . Manual 12 | . 11 . 1 . Terminals 14 | . 14 . . . Fabricators . | . . . . . Repair Stations 5 | . 5 . . . Recycling Units 5 | . 5 . . . Scanalyzers . | . . . . . Garrison Access . | . . . . . Terminal Hacks 5 | . 2 . 3 . Record 2 | . . . 2 . Robot Analysis 2 | . 2 . . . Proto ID Catalog 1 | . . . 1 . Fabricator Hacks . | . . . . . Repair Station Hacks 5 | . 5 . . . Scan Component 2 | . 2 . . . Repair 2 | . 2 . . . Refit 1 | . 1 . . . Recycling Unit Hacks 1 | . 1 . . . Retrieve Components 1 | . 1 . . . Scanalyzer . | . . . . . Garrison Access Hacks . | . . . . . Unauthorized Hacks 2 | . 2 . . . Terminals . | . . . . . Fabricators . | . . . . . Repair Stations . | . . . . . Recycling Units 2 | . 2 . . . Tunnel 2 | . 2 . . . Scanalyzers . | . . . . . Garrison Access . | . . . . . Data Cores Recovered . | . . . . . Used . | . . . . . Hacking Detections 8 | . 8 . . . Full Trace Events . | . . . . . Feedback Events . | . . . . . Feedback Blocked . | . . . . . Robot Schematics Acquired . | . . . . . Robots Built . | . . . . . Authchips . | . . . . . Time . | . . . . . Total Robot Build Rating . | . . . . . Part Schematics Acquired . | . . . . . Parts Built . | . . . . . Authchips . | . . . . . Time . | . . . . . Total Part Build Rating . | . . . . . Parts Repaired 2 | . 2 . . . Time 52 | . 52 . . . Parts Recycled . | . . . . . Recycled Matter . | . . . . . Retrieved Matter . | . . . . . Retrieved Components 10 | . 10 . . . Parts Scanalyzed . | . . . . . Part Schematics Acquired . | . . . . . Parts Damaged . | . . . . . Bothacking | -11 -10 -10 -10 -9 ------------ Run | Yrd Mat Min Exi Min Used RIF Installer . | . . . . . Robots Hacked . | . . . . . Non-combat . | . . . . . Combat . | . . . . . Robot Hacks Applied . | . . . . . Relay Couplers Released . | . . . . . Fabnet Peak Effective % . | . . . . . Robots Rewired . | . . . . . Allies Hacked . | . . . . . Hacks Repelled . | . . . . . Allies | -11 -10 -10 -10 -9 -------- Run | Yrd Mat Min Exi Min Total Allies 2 | . . 2 . . Largest Group 2 | . . 2 2 . Highest-Rated Group 51 | . . 51 51 . Highest-Rated Ally 31 | . . 31 31 . Total Orders . | . . . . . Ally Attacks . | . . . . . Total Damage . | . . . . . Kills . | . . . . . Allies Corrupted . | . . . . . Allies Melted . | . . . . . Intel | -11 -10 -10 -10 -9 ------- Run | Yrd Mat Min Exi Min Active Infowar (turns) 838 | 6 743 75 . 14 Structural 549 | . 474 75 . . Seismic 289 | 6 269 . . 14 Robot Analysis Total 2 | . 2 . . . Derelict Logs Recovered . | . . . . . Drone Launches . | . . . . . Drone Recoveries . | . . . . . Exploration | -11 -10 -10 -10 -9 ------------- Run | Yrd Mat Min Exi Min Turns Passed 1949 | 227 823 230 303 366 Spaces Moved 1458 | 122 644 189 293 210 Core 6 | 1 . 5 . . Treads 9 | 9 . . . . Legs . | . . . . . Wheels 1443 | 112 644 184 293 210 Hover . | . . . . . Flight . | . . . . . Fastest Speed 50 | 50 80 80 100 130 Average Speed 96 | 97 83 93 102 130 Slowest Speed 200 | 160 95 200 130 130 Overloaded Moves . | . . . . . Propulsion Burnouts . | . . . . . Robots Hopped . | . . . . . Potential Cave-ins . | . . . . . Cave-ins Triggered . | . . . . . Exploration Rate (%) 45 | 4 96 35 61 33 Regions Visited 4 Branch Regions 3 Pre-discovered Areas 3 | . 2 . 1 . Known Exits Taken . | . . . . . Unknown Exits Taken 4 | 1 1 1 1 . Scrap Searched 1 | . . . . 1 Spaces Dug . | . . . . . Terrain Destroyed . | . . . . . Melee . | . . . . . Projectile . | . . . . . AOE . | . . . . . Terrain Rammed . | . . . . . Walls Destroyed . | . . . . . Machines Disabled . | . . . . . Actions | -11 -10 -10 -10 -9 --------- Run | Yrd Mat Min Exi Min Total 1775 | 168 828 224 294 261 Wait 153 | . 113 22 . 18 Move 1454 | 121 643 188 292 210 Hop . | . . . . . Pick Up 13 | 6 5 . 1 1 Fast Attach 11 | 8 3 . . . Attach 4 | . 1 2 . 1 Detach 1 | 1 . . . . Swap 6 | . 2 1 1 2 Drop 5 | . 5 . . . Fire 128 | 32 56 11 . 29 Melee . | . . . . . Ram . | . . . . . Kick . | . . . . . Crush . | . . . . . Escape Stasis . | . . . . . Rewire . | . . . . . Trap . | . . . . . Miscellaneous . | . . . . . Route ------- -11/Scrapyard -10/Materials (discovered 4 exits: [*Mat x3] / [*Min]) -10/Mines (discovered 2 exits: [*Mat] / *Exi) -10/Exiles -9/Mines History --------- Turn | Location | Event 9 | -11/Scrapyard | Discovered new exit (range 15) 228 | -11/Scrapyard | Entered Materials 300 | -10/Materials | Build established: Mutant 422 | -10/Materials | Discovered new exit (range 4) 684 | -10/Materials | Repaired Lgt. Treads 711 | -10/Materials | Repaired Wheel 729 | -10/Materials | Discovered new exit (range 11) 876 | -10/Materials | Discovered new exit (range 13) 890 | -10/Materials | Discovered new exit (range 16) 1051 | -10/Materials | Entered Mines 1136 | -10/Mines | Core integrity fell below 50% 1197 | -10/Mines | Discovered new exit (range 10) 1237 | -10/Mines | Deemed a non-threat by the Exiles lab entrance 1238 | -10/Mines | Discovered new exit (range 5) 1281 | -10/Mines | Entered Exiles 1281 | -10/Exiles | Accompanied by 2 allies 1305 | -10/Exiles | Met 8R-AWN 1311 | -10/Exiles | Led the pair of lost Derelicts to a safe place 1345 | -10/Exiles | Met EX-HEX 1374 | -10/Exiles | Met EX-BIN 1385 | -10/Exiles | Aligned with FarCom system 1386 | -10/Exiles | Given EX-Vault access code 1409 | -10/Exiles | Opened EX-Vault 1419 | -10/Exiles | Found Trap Reconfigurator 1439 | -10/Exiles | Warned to stay clear of 0b10 Research branches 1469 | -10/Exiles | Met EX-DEC 1475 | -10/Exiles | Learned location of Zion (-7) 1515 | -10/Exiles | Discovered new exit (range 10) 1584 | -10/Exiles | Left Exiles lab with Trap Reconfigurator 1584 | -10/Exiles | Entered Mines 1848 | -9/Mines | Assembled infested the area 1897 | -9/Mines | Core integrity fell below 20% 1950 | -9/Mines | Destroyed by as-98642 with Assembled Maul Last Messages --------------- 01848_ ALERT: Infestation in the mines, dispatching Demolisher response squad. 01877_ U-05 Engineer destroyed. 01878_ as-22982 destroyed. 01895_ as-14887 destroyed. 01904_ as-70353 destroyed. 01909_ Lgt. Armor Plating destroyed. 01909_ System corrupted by crushing effect (+4). 01910_ as-08889 destroyed. 01912_ as-09419 destroyed. 01918_ Lgt. Assault Rifle destroyed. 01926_ as-95745 destroyed. 01927_ Knocked back. 01928_ Acquired 6 matter. 01933_ Seismic Detector destroyed. 01933_ Backup Power I destroyed. 01933_ System corrupted by crushing effect (+2). 01933_ System corrupted by crushing effect (+1). 01936_ Knocked back. 01944_ Destroyed Asb. Hover Unit. Map ----- +----------------------------------------------------+ | | | | | | | | | | | | | | | | | | | | | ?????????????????????????????????????????????????? | | ???????????????????#?????????????????????????????? | | ??????????????????? ?????????????????????????????? | | ??????????????????? #???????????????????######???? | | ??????????????????? #?????????????????## ##??? | | ??????????????????? $ ?????????????????# ##?? | | ???????????????????!%%????????????????## ##? | | ???????????????????%||???????????????## ## | | ???????????????????# %???????????????# # | | ???????????????????# ???????????????# | | ???????????????????# #???????????????## ### | | ???????????????????# #?########???????## #?## | | ???????????????????# #?# #????????# #??## | | ???????????????##### #?# #????????# #???## | | ???????????????# %%###a""" #????????# #????## | | ???????????????????# % a@"" ########## #?????### | | ???????????????????#####a""" #???????? | | ???????????????????????# ############???????? | | ???????????????????????# #??????????????????? | | ???????????????????????########??????????######### | | ?????????????????????????????????????????# # | | ?????????????????????????????????????????# | | ?????????????????????????????????????????# ##### | | ?????????????????????????????????????##### %#???## | | ?????????????????????????????????????# #????? | | ?????????????????????????????????????# #????? | | ?????????????????????????????????????# ######????? | | ????????????????????????????????????## #?????????? | | ???????????????????????????????????## ##????????? | | ???????????????????????????????????# #????????? | | ???????????????????????????????????# ##???????? | | ???????????????????????????????????## ##??????? | | ????????????????????????????????????## #??????? | | ?????????????????????????????????????## #??????? | | ??????????????????????????????????????# #??????? | | ??????????????????????????????????????# ##??????? | | ??????????????????????????????????????# #???????? | | ??????????????????????????????????????# #???????? | | ??????????????????????????????????????# #####???? | | ??????????????????????????????????????# # ##??? | +----------------------------------------------------+ Best States ------------- Heat Dissipation 25 Energy Generation 10 Energy Capacity 125 Matter Stores 300 Matter Capacity 300 Sight Range 16 Terrain Scan Density 10 Armor Coverage 150 Evasion (%) 44 Recoil Reduction 1 Item Schematics ----------------- None Robot Schematics ------------------ None Fabricated ------------ Nothing Repaired ---------- Lgt. Treads | 11% | -10/Materials Wheel | 10% | -10/Materials Alien Tech Used ----------------- None Achievements -------------- None Challenges ------------ None Game ------ Seed NullScatterGuard Manual? 0 Play Time 00:18:15 Cumulative 59.8 hours Start 2025.09.19 @ 23:31:04 End 2025.09.19 @ 23:49:49 Sessions 1 Manual Loads 0 Difficulty Rogue Special Mode None Game No. 117 Rogue 117 Adventurer 0 Explorer 0 Win Type - Total 0 Types 0/0/0/0/0/0/0/0/0/0 Lore% 49 Gallery% 35 Achievement% 32 Wizard Run 0 Options --------- Layout 2 ASCII 0 Keyboard 1 Movement Arrows Keybinds 0 Fullscreen 2 Font 32/SmallcapsGlow Map View 50x44 Zoom Use 0% Tactical HUD 1 Map Filters NONE Filters NONE Steam 1 RUN: 7348523e-1edf-4500-9557-d60bdb8bfee7